fUSD/lending_fUSD_20260111
["ID","MTS","AMOUNT","RATE_DAILY","PERIOD"]
[401349902,1768150248366,-151.0,0.00017984,2]
[401349904,1768150248375,-456.754994,0.00017984,2]
[401349906,1768150248385,-506.865865,0.00017984,2]
[401349908,1768150248394,-151.0,0.00017984,2]
[401349911,1768150248404,-456.754994,0.00017984,2]
[401349913,1768150248413,-151.0,0.00017984,2]
[401349915,1768150248424,-456.754994,0.00017984,2]
[401349917,1768150248433,-151.0,0.00017984,2]
[401349919,1768150248442,-151.0,0.00017984,2]
[401349921,1768150248453,-237.806149,0.00017984,2]
[401349923,1768150248462,-456.754994,0.00017984,2]
[401349925,1768150248472,-224.128754,0.00017984,2]
[401349927,1768150248482,-151.0,0.00017984,2]
[401349929,1768150248492,-151.0,0.00017984,2]
[401349931,1768150248501,-680.939729,0.00017984,2]
[401349933,1768150248510,-151.0,0.00017984,2]
[401349935,1768150248519,-680.939729,0.00017984,2]
[401349937,1768150248528,-151.0,0.00017984,2]
[401349939,1768150248538,-151.0,0.00017984,2]
[401349941,1768150248547,-680.939729,0.00017984,2]
[401349943,1768150248557,-680.939729,0.00017984,2]
[401349945,1768150248567,-151.0,0.00017984,2]
[401349947,1768150248576,-292.243279,0.00017984,2]
[401349948,1768150248586,-1664.069994,0.00017984,2]
[401349950,1768150248596,-188.904835,0.00017984,2]
[401349952,1768150248605,-1664.069994,0.00017984,2]
[401349954,1768150248615,-188.904835,0.00017984,2]
[401349956,1768150248624,-1664.069994,0.00017984,2]
[401349959,1768150248635,-188.904835,0.00017984,2]
[401349961,1768150248644,-1664.069994,0.00017984,2]
[401349962,1768150248653,-188.904835,0.00017984,2]
[401349964,1768150248663,-151.0,0.00017984,2]
[401349965,1768150248672,-151.0,0.00017984,2]
[401349967,1768150248681,-151.0,0.00017984,2]
[401349969,1768150248691,-415.129108,0.00017984,2]
[401349970,1768150248700,-415.129108,0.00017984,2]
[401349972,1768150248710,-365.740895,0.00017984,2]
[401349973,1768150248719,-415.129108,0.00017984,2]
[401349975,1768150248729,-365.740895,0.00017984,2]
[401349977,1768150248738,-415.129108,0.00017984,2]
[401349978,1768150248747,-365.740895,0.00017984,2]
[401349980,1768150248757,-365.740895,0.00017984,2]
[401349982,1768150248766,-200.294492,0.00017984,2]
[401349983,1768150248775,-1269.86314,0.00017984,2]
[401349985,1768150248785,-1269.86314,0.00017984,2]
[401349986,1768150248795,-1269.86314,0.00017984,2]
[401349988,1768150248804,-1269.86314,0.00017984,2]
[401349990,1768150248815,-318.505397,0.00017984,2]
[401349991,1768150248824,-151.0,0.00017984,2]
[401349993,1768150248834,-318.505397,0.00017984,2]
[401349994,1768150248844,-151.0,0.00017984,2]
[401349996,1768150248854,-654.595373,0.00017984,2]
[401349998,1768150248863,-151.0,0.00017984,2]
[401349999,1768150248872,-318.505397,0.00017984,2]
[401350001,1768150248881,-151.0,0.00017984,2]
[401350002,1768150248891,-654.595373,0.00017984,2]
[401350004,1768150248900,-226.601997,0.00017984,2]
[401350006,1768150248910,-151.0,0.00017984,2]
[401350007,1768150248919,-318.505397,0.00017984,2]
[401350009,1768150248930,-151.0,0.00017984,2]
[401350011,1768150248939,-654.595373,0.00017984,2]
[401350012,1768150248949,-151.0,0.00017984,2]
[401350014,1768150248958,-654.595373,0.00017984,2]
[401350016,1768150248968,-151.0,0.00017984,2]
[401350018,1768150248978,-1765.956881,0.00017984,2]
[401350019,1768150248988,-151.0,0.00017984,2]
[401350021,1768150248997,-151.0,0.00017984,2]
[401350023,1768150249007,-391.846549,0.00017984,2]
[401350024,1768150249016,-1765.956881,0.00017984,2]
[401350026,1768150249026,-186.823703,0.00017984,2]
[401350028,1768150249038,-391.846549,0.00017984,2]
[401350029,1768150249048,-1765.956881,0.00017984,2]
[401350031,1768150249058,-391.846549,0.00017984,2]
[401350033,1768150249068,-1765.956881,0.00017984,2]
[401350034,1768150249077,-151.0,0.00017984,2]
[401350036,1768150249087,-391.846549,0.00017984,2]
[401350038,1768150249097,-244.883945,0.00017984,2]
[401350040,1768150249106,-151.0,0.00017984,2]
[401350041,1768150249116,-151.0,0.00017984,2]
[401350043,1768150249126,-244.883945,0.00017984,2]
[401350045,1768150249135,-175.422286,0.00017984,2]
[401350046,1768150249145,-244.883945,0.00017984,2]
[401350048,1768150249154,-244.883945,0.00017984,2]
[401350050,1768150249164,-151.0,0.00017984,2]
[401350052,1768150249175,-203.441097,0.00017984,2]
[401350054,1768150249184,-151.0,0.00017984,2]
[401350055,1768150249194,-151.0,0.00017984,2]
[401350057,1768150249203,-151.0,0.00017984,2]
[401350058,1768150249213,-151.0,0.00017984,2]
[401350060,1768150249222,-151.0,0.00017984,2]
[401350062,1768150249231,-151.0,0.00017984,2]
[401350064,1768150249242,-151.0,0.00017984,2]
[401350066,1768150249252,-427.001082,0.00017984,2]
[401350067,1768150249262,-184.07511,0.00017984,2]
[401350069,1768150249272,-427.001082,0.00017984,2]
[401350071,1768150249281,-184.07511,0.00017984,2]
[401350072,1768150249291,-427.001082,0.00017984,2]
[401350074,1768150249300,-184.07511,0.00017984,2]
[401350076,1768150249311,-427.001082,0.00017984,2]
[401350078,1768150249319,-184.07511,0.00017984,2]
[401350079,1768150249328,-151.0,0.00017984,2]
[401350081,1768150249337,-151.0,0.00017984,2]
[401350083,1768150249346,-170.438842,0.00017984,2]
[401350084,1768150249355,-280.30467,0.00017984,2]
[401350086,1768150249366,-170.438842,0.00017984,2]
[401350088,1768150249375,-170.438842,0.00017984,2]
[401350090,1768150249384,-1089.522056,0.00017984,2]
[401350091,1768150249394,-151.0,0.00017984,2]
[401350093,1768150249404,-170.438842,0.00017984,2]
[401350095,1768150249413,-151.0,0.00017984,2]
[401350097,1768150249424,-1089.522056,0.00017984,2]
[401350098,1768150249433,-1089.522056,0.00017984,2]
[401350100,1768150249444,-151.0,0.00017984,2]
[401350102,1768150249453,-465.445525,0.00017984,2]
[401350104,1768150249462,-1089.522056,0.00017984,2]
[401350105,1768150249472,-151.0,0.00017984,2]
[401350107,1768150249481,-465.445525,0.00017984,2]
[401350109,1768150249491,-465.445525,0.00017984,2]
[401350111,1768150249500,-151.0,0.00017984,2]
[401350113,1768150249509,-282.28364,0.00017984,2]
[401350115,1768150249519,-151.0,0.00017984,2]
[401350117,1768150249528,-465.445525,0.00017984,2]
[401350119,1768150249537,-151.0,0.00017984,2]
[401350120,1768150249546,-282.28364,0.00017984,2]
[401350122,1768150249557,-151.0,0.00017984,2]
[401350123,1768150249566,-151.0,0.00017984,2]
[401350124,1768150249574,-282.912387,0.00017984,2]
[401350125,1768150249584,-282.28364,0.00017984,2]
[401350126,1768150249592,-151.0,0.00017984,2]
[401350127,1768150249602,-623.001243,0.00017984,2]
[401350128,1768150249610,-151.0,0.00017984,2]
[401350129,1768150249618,-282.28364,0.00017984,2]
[401350130,1768150249626,-282.912387,0.00017984,2]
[401350131,1768150249634,-623.001243,0.00017984,2]
[401350132,1768150249642,-282.912387,0.00017984,2]
[401350133,1768150249650,-151.0,0.00017984,2]
[401350134,1768150249657,-623.001243,0.00017984,2]
[401350135,1768150249665,-282.912387,0.00017984,2]
[401350136,1768150249676,-623.001243,0.00017984,2]
[401350137,1768150249685,-1580.779284,0.00017984,2]
[401350139,1768150249696,-1580.779284,0.00017984,2]
[401350140,1768150249705,-1580.779284,0.00017984,2]
[401350142,1768150249714,-1580.779284,0.00017984,2]
[401350144,1768150249723,-1001.36882,0.00017984,2]
[401350146,1768150249732,-2068.70979,0.00017984,2]
[401350148,1768150249741,-1001.36882,0.00017984,2]
[401350150,1768150249751,-2068.70979,0.00017984,2]
[401350152,1768150249760,-1001.36882,0.00017984,2]
[401350154,1768150249770,-2068.70979,0.00017984,2]
[401350156,1768150249779,-1001.36882,0.00017984,2]
[401350158,1768150249788,-2068.70979,0.00017984,2]
[401350160,1768150249798,-515.768598,0.00017984,2]
[401350162,1768150249808,-201.153607,0.00017984,2]
[401350164,1768150249819,-515.768598,0.00017984,2]
[401350166,1768150249831,-201.153607,0.00017984,2]
[401350168,1768150249844,-704.160543,0.00017984,2]
[401350170,1768150249853,-515.768598,0.00017984,2]
[401350171,1768150249862,-201.153607,0.00017984,2]
[401350174,1768150249873,-201.153607,0.00017984,2]
[401350176,1768150249882,-704.160543,0.00017984,2]
[401350177,1768150249892,-515.768598,0.00017984,2]
[401350179,1768150249902,-704.160543,0.00017984,2]
[401350181,1768150249911,-704.160543,0.00017984,2]
[401350184,1768150249922,-151.0,0.00017984,2]
[401350186,1768150249931,-151.0,0.00017984,2]
[401350188,1768150249940,-151.0,0.00017984,2]
[401350190,1768150249951,-4106.764814,0.00017984,2]
[401350192,1768150249960,-151.0,0.00017984,2]
[401350194,1768150249970,-165.572138,0.00017984,2]
[401350196,1768150249979,-372.861137,0.00017984,2]
[401350198,1768150249989,-4106.764814,0.00017984,2]
[401350200,1768150249998,-165.572138,0.00017984,2]
[401350202,1768150250008,-151.0,0.00017984,2]
[401350204,1768150250018,-372.861137,0.00017984,2]
[401350206,1768150250028,-4106.764814,0.00017984,2]
[401350208,1768150250037,-165.572138,0.00017984,2]
[401350210,1768150250046,-332.214435,0.00017984,2]
[401350212,1768150250056,-1018.724913,0.00017984,2]
[401350214,1768150250065,-372.861137,0.00017984,2]
[401350224,1768150250156,-4106.764814,0.00017984,2]
[401350226,1768150250166,-165.572138,0.00017984,2]
[401350228,1768150250176,-332.214435,0.00017984,2]
[401350230,1768150250186,-1018.724913,0.00017984,2]
[401350232,1768150250195,-372.861137,0.00017984,2]
[401350234,1768150250205,-332.214435,0.00017984,2]
[401350236,1768150250215,-1018.724913,0.00017984,2]
[401350238,1768150250226,-151.0,0.00017984,2]
[401350241,1768150250237,-151.0,0.00017984,2]
[401350243,1768150250247,-332.214435,0.00017984,2]
[401350245,1768150250257,-1018.724913,0.00017984,2]
[401350247,1768150250267,-151.0,0.00017984,2]
[401350249,1768150250276,-573.970445,0.00017984,2]
[401350251,1768150250286,-151.0,0.00017984,2]
[401350253,1768150250295,-573.970445,0.00017984,2]
[401350255,1768150250304,-179.284149,0.00017984,2]
[401350257,1768150250313,-573.970445,0.00017984,2]
[401350259,1768150250322,-580.109053,0.00017984,2]
[401350261,1768150250331,-580.109053,0.00017984,2]
[401350263,1768150250341,-573.970445,0.00017984,2]
[401350264,1768150250351,-1965.222408,0.00017984,2]
[401350267,1768150250361,-580.109053,0.00017984,2]
[401350269,1768150250370,-438.857825,0.00017984,2]
[401350271,1768150250379,-1965.222408,0.00017984,2]
[401350272,1768150250388,-196.746434,0.00017984,2]
[401350274,1768150250397,-580.109053,0.00017984,2]
[401350276,1768150250406,-438.857825,0.00017984,2]
[401350278,1768150250416,-196.746434,0.00017984,2]
[401350280,1768150250426,-1965.222408,0.00017984,2]
[401350282,1768150250435,-438.857825,0.00017984,2]
[401350284,1768150250445,-196.746434,0.00017984,2]
[401350286,1768150250455,-1965.222408,0.00017984,2]
[401350288,1768150250466,-438.857825,0.00017984,2]
[401350290,1768150250476,-196.746434,0.00017984,2]
[401350293,1768150250485,-1493.308871,0.00017984,2]
[401350295,1768150250495,-151.0,0.00017984,2]
[401350296,1768150250507,-1493.308871,0.00017984,2]
[401350298,1768150250518,-733.26669,0.00017984,2]
[401350300,1768150250527,-921.834081,0.00017984,2]
[401350302,1768150250537,-2235.751841,0.00017984,2]
[401350304,1768150250546,-1493.308871,0.00017984,2]
[401350306,1768150250555,-733.26669,0.00017984,2]
[401350308,1768150250564,-921.834081,0.00017984,2]
[401350310,1768150250573,-2235.751841,0.00017984,2]
[401350312,1768150250582,-1493.308871,0.00017984,2]
[401350314,1768150250592,-733.26669,0.00017984,2]
[401350316,1768150250602,-921.834081,0.00017984,2]
[401350318,1768150250612,-2235.751841,0.00017984,2]
[401350320,1768150250621,-733.26669,0.00017984,2]
[401350322,1768150250631,-921.834081,0.00017984,2]
[401350324,1768150250641,-2235.751841,0.00017984,2]
[401350326,1768150250651,-151.0,0.00017984,2]
[401350329,1768150250662,-151.0,0.00017984,2]
[401350330,1768150250671,-151.0,0.00017984,2]
[401350332,1768150250681,-151.0,0.00017984,2]
[401350334,1768150250690,-906.513466,0.00017984,2]
[401350336,1768150250699,-455.569602,0.00017984,2]
[401350338,1768150250707,-2039.220797,0.00017984,2]
[401350340,1768150250716,-906.513466,0.00017984,2]
[401350342,1768150250725,-151.0,0.00017984,2]
[401350344,1768150250734,-455.569602,0.00017984,2]
[401350346,1768150250743,-2039.220797,0.00017984,2]
[401350348,1768150250752,-906.513466,0.00017984,2]
[401350350,1768150250763,-151.0,0.00017984,2]
[401350352,1768150250772,-455.569602,0.00017984,2]
[401350354,1768150250781,-2039.220797,0.00017984,2]
[401350356,1768150250790,-906.513466,0.00017984,2]
[401350358,1768150250800,-151.0,0.00017984,2]
[401350361,1768150250810,-151.0,0.00017984,2]
[401350363,1768150250821,-275.980319,0.00017984,2]
[401350364,1768150250831,-455.569602,0.00017984,2]
[401350367,1768150250840,-199.832252,0.00017984,2]
[401350369,1768150250850,-2039.220797,0.00017984,2]
[401350371,1768150250859,-151.0,0.00017984,2]
[401350373,1768150250869,-275.980319,0.00017984,2]
[401350375,1768150250878,-382.764866,0.00017984,2]
[401350377,1768150250887,-199.832252,0.00017984,2]
[401350379,1768150250897,-151.0,0.00017984,2]
[401350381,1768150250905,-174.338724,0.00017984,2]
[401350383,1768150250915,-199.832252,0.00017984,2]
[401350384,1768150250924,-382.764866,0.00017984,2]
[401350386,1768150250933,-275.980319,0.00017984,2]
[401350388,1768150250942,-199.832252,0.00017984,2]
[401350390,1768150250951,-275.980319,0.00017984,2]
[401350392,1768150250960,-382.764866,0.00017984,2]
[401350394,1768150250969,-151.0,0.00017984,2]
[401350396,1768150250978,-382.764866,0.00017984,2]
[401350398,1768150250986,-151.0,0.00017984,2]
[401350400,1768150250996,-1000.0,0.0001799,2]
[401350402,1768150251005,-1127.582295,0.0001799,2]
[401350404,1768150251014,-1127.582295,0.0001799,2]
[401350406,1768150251023,-500.0,0.00017998,2]
[401350408,1768150251033,-166.9455236,0.00017999,2]
[401350410,1768150251044,-500.0,0.00017999,2]
[401350412,1768150251054,-500.0,0.00017999,2]
[401350414,1768150251064,-500.0,0.00017999,2]
[401350416,1768150251073,-500.0,0.00017999,2]
[401350418,1768150251083,-500.0,0.00017999,2]
[401350420,1768150251092,-500.0,0.00017999,2]
[401350422,1768150251102,-500.0,0.00017999,2]
[401350424,1768150251111,-500.0,0.00017999,2]
[401350426,1768150251120,-415.1732756,0.00017999,2]
[401350428,1768150251130,-6474.7929339,0.00017999,2]
[401350430,1768150251141,-200.0,0.00017999,2]
[401350432,1768150251150,-300.0,0.00017999,2]
[401350434,1768150251159,-200.0,0.00017999,2]
[401350436,1768150251168,-300.0,0.00017999,2]
[401350438,1768150251178,-500.0,0.00017999,2]
[401350440,1768150251187,-500.0,0.00017999,2]
[401350442,1768150251196,-500.0,0.00017999,2]
[401350444,1768150251205,-500.0,0.00017999,2]
[401350446,1768150251214,-1000.0,0.00017999,2]
[401350448,1768150251223,-300.0,0.00017999,2]
[401350450,1768150251232,-673.04563665,0.00017999,2]
[401350451,1768150251241,-300.0,0.00017999,2]
[401350453,1768150251250,-200.0,0.00017999,2]
[401350455,1768150251259,-200.0,0.00017999,2]
[401350457,1768150251269,-624.081,0.00018,2]
[401350459,1768150251278,-1330.0,0.00018,2]
[401350461,1768150251287,-1419.205,0.00018,2]
[401350463,1768150251297,-3468.0,0.00018,2]
[401350465,1768150251306,-1283.495,0.00018,2]
[401350467,1768150251316,-6555.0,0.00018,2]
[401350469,1768150251326,-250.0,0.00018,2]
[401350471,1768150251336,-566.0,0.00018,2]
[401350473,1768150251346,-150.0,0.00018,2]
[401350475,1768150251356,-150.0,0.00018,2]
[401350478,1768150251366,-150.0,0.00018,2]
[401350479,1768150251375,-150.0,0.00018,2]
[401350481,1768150251385,-150.0,0.00018,2]
[401350483,1768150251394,-178.176763,0.00018,2]
[401350485,1768150251403,-150.37867968,0.00018,2]
[401350487,1768150251412,-150.4343184,0.00018,2]
[401350489,1768150251422,-150.0,0.00018,2]
[401350491,1768150251431,-150.00000001,0.00018,2]
[401350493,1768150251441,-150.0,0.00018,2]
[401350495,1768150251450,-150.0,0.00018,2]
[401350497,1768150251458,-150.0,0.00018,2]
[401350499,1768150251467,-247.12115075,0.00018,2]
[401350501,1768150251477,-454665.92535583,0.00018,2]
[401350541,1768150252002,-91845.87015238,0.00018,2]
[401350561,1768150252193,-151.0,0.00017041,2]
[401350563,1768150252209,-1847.5348,0.00018,2]
[401350565,1768150252222,-1345.5601092,0.00018,2]
[401350567,1768150252233,-838.48,0.00018,2]
[401350569,1768150252244,-1100.79986322,0.00018,2]
[401350579,1768150252330,-1542.26069336,0.00018,2]
[401350581,1768150252341,-591.07158026,0.00018,2]
[401350591,1768150252422,-661.174369,0.00017041,2]
[401350593,1768150252431,-151.0,0.00017984,2]
[401350595,1768150252440,-151.0,0.00017984,2]
[401350597,1768150252449,-661.174369,0.00017984,2]
[401350598,1768150252458,-2437.0,0.00018,2]
[401350600,1768150252468,-4649.01923946,0.00018,2]
[401350603,1768150252479,-555.18599999,0.00018,2]
[401350605,1768150252490,-24148.94907935,0.00018,2]
[401350622,1768150252639,-313.82,0.00017041,2]
[401350624,1768150252651,-347.354369,0.00017041,2]
[401350626,1768150252660,-482.99,0.00017041,2]
[401350628,1768150252669,-661.82,0.00017041,2]
[401350630,1768150252679,-171.49,0.00017178,2]
[401350632,1768150252689,-206138.09728239,0.00018,2]
[401350634,1768150252699,-796.93684334,0.00018,2]
[401350636,1768150252711,-4368.89401478,0.00018,2]
[401350644,1768150252774,-4136.61125587,0.00015103,2]
[401350646,1768150252784,-12445.97277717,0.00015103,2]
[401350658,1768150252887,-9721.98323544,0.00015103,2]
[401350660,1768150252896,-661.174369,0.00017041,2]
[401350662,1768150252905,-661.174369,0.00017984,2]
[401350664,1768150252915,-219712.01975009,0.00018,2]
[401350665,1768150252923,-151.0738,0.00018,2]
[401350668,1768150252933,-76356.9185879,0.00018,2]
[401350670,1768150252947,-156495.63582677,0.00018,2]
[401350672,1768150252958,-351.5521247,0.00018,2]
[401350675,1768150252974,-393.4375,0.00017984,2]
[401350853,1768150348487,-245.30934677,0.00015122,2]
[401350854,1768150350524,-171.3506534,0.00015122,2]
[401350855,1768150355465,-195.0,0.00015122,2]
[401350856,1768150359094,-277.15582347,0.00015122,2]
[401350857,1768150364786,-252.07130345,0.00015103,2]
[401350858,1768150364807,-34.75403385,0.00015122,2]
[401350859,1768150366822,-307.68370555,0.00015122,2]
[401350860,1768150371488,-197.30505796,0.00015122,2]
[401350861,1768150375223,-234.8253373,0.00015122,2]
[401350862,1768150376287,-351.13458399,0.00015122,2]
[401350863,1768150383399,-248.05759627,0.00015097,2]
[401350864,1768150384812,-51.94240373,0.00015097,2]
[401350865,1768150384834,-248.05759627,0.00015098,2]
[401350866,1768150387782,-195.0,0.00015098,2]
[401350867,1768150387806,-305.0,0.00015098,2]
[401350871,1768150391133,-161.61997633,0.00015098,2]
[401350872,1768150392788,-298.73258183,0.00015098,2]
[401350873,1768150398424,-297.33914041,0.00015098,2]
[401350874,1768150399895,-333.99069349,0.00015098,2]
[401350875,1768150423075,-158.38171169,0.00015022,2]
[401350876,1768150425967,-152.24156188,0.00015022,2]
[401350877,1768150429531,-302.38711266,0.00015022,2]
[401350878,1768150431895,-299.4769934,0.00015022,2]
[401350879,1768150433511,-199.03312016,0.00015022,2]
[401350880,1768150435566,-293.92349696,0.00015022,2]
[401350881,1768150437049,-250.0,0.00015022,2]
[401350882,1768150439661,-290.51148252,0.00015022,2]
[401350883,1768150443192,-166.66,0.00015022,2]
[401350884,1768150444615,-166.66,0.00015022,2]
[401350885,1768150447419,-231.83004513,0.00015022,2]
[401350886,1768150448609,-166.66,0.00015022,2]
[401350891,1768150494254,456.900245,0.00014965,2]
[401352392,1768150862295,361.0849,0.00014998,2]
[401352393,1768150903458,-275.0,0.00015041,2]
[401352394,1768150903480,-18.05969253,0.00015041,2]
[401352395,1768150905353,-176.94030747,0.00015041,2]
[401352396,1768150905377,-29.13660126,0.00015041,2]
[401352397,1768150956275,87346.1581,0.00014998,2]
[401352398,1768151029384,3753.77,0.00014616,2]
[401352401,1768151097933,-261.88660126,0.00015041,2]
[401352404,1768151154395,166.66,0.00014927,2]
[401352407,1768151229129,-250.0,0.00015041,2]
[401352408,1768151229151,-389.27544618,0.00015064,2]
[401352409,1768151235083,-210.72455382,0.00015064,2]
[401352410,1768151235101,-1200.0,0.00015087,2]
[401352411,1768151235125,-1200.0,0.00015087,2]
[401352412,1768151235144,-300.0,0.00015087,2]
[401352413,1768151235164,-6164.95643479,0.00015088,2]
[401352414,1768151235943,30600.0,0.000148,5]
[401352415,1768151238036,61200.0,0.000149,5]
[401352416,1768151239905,5421.94,0.00014649,2]
[401352419,1768151308566,-195.0,0.00015097,2]
[401352431,1768151355071,-604.709,0.00015097,2]
[401352433,1768151362138,1000000.0,0.00014998,2]
[401352443,1768151362973,-268.97657972,0.00015097,2]
[401352445,1768151366177,-326.31442028,0.00015097,2]
[401352446,1768151366199,-300.0,0.00015097,2]
[401352447,1768151366218,-300.0,0.00015097,2]
[401352448,1768151366240,-494.05226598,0.00015098,2]
[401352449,1768151366260,-6046.15517708,0.00015098,2]
[401352450,1768151368068,-7466.52186326,0.00015098,2]
[401352451,1768151373072,-4718.94289068,0.00015098,2]
[401352452,1768151373097,-721.14586104,0.00015104,2]
[401352453,1768151373116,-244.35202716,0.00015122,2]
[401352454,1768151373141,-151.0,0.00015122,2]
[401352455,1768151373163,-2215.97509235,0.00015187,2]
[401352456,1768151374130,-4703.80716651,0.00015187,2]
[401352457,1768151387367,309.48184341,0.0002,30]
[401352474,1768151431981,-9684.71382665,0.00015098,2]
[401352475,1768151432030,-654.37273589,0.00015098,2]
[401352476,1768151432042,-416.604407,0.00015098,2]
[401352477,1768151432054,-482.41,0.00015098,2]
[401352478,1768151432076,-1594.4736441,0.00015098,2]
[401352479,1768151432087,-511.71246314,0.00015098,2]
[401352480,1768151432182,-3652.98445175,0.00015098,2]
[401352518,1768151438562,-6676.83901303,0.00015098,2]
[401352520,1768151438572,-306.59827176,0.00015187,2]
[401352522,1768151438582,-209.44459471,0.00015187,2]
[401352524,1768151438591,-151.0,0.00015187,2]
[401352526,1768151438601,-1000.0,0.00015188,2]
[401352528,1768151438610,-151.0,0.00015189,2]
[401352530,1768151438621,-151.0,0.00015189,2]
[401352532,1768151438631,-235.01688217,0.00015189,2]
[401352534,1768151438641,-300.0,0.00015196,2]
[401352536,1768151438651,-1200.0,0.00015196,2]
[401352538,1768151438660,-500.0,0.00015197,2]
[401352540,1768151438670,-500.0,0.00015197,2]
[401352542,1768151438679,-500.0,0.00015197,2]
[401352544,1768151438689,-500.0,0.00015197,2]
[401352546,1768151438699,-500.0,0.00015197,2]
[401352548,1768151438708,-611.63457892,0.00015197,2]
[401352550,1768151438718,-535.89319473,0.00015197,2]
[401352553,1768151438728,-500.0,0.00015197,2]
[401352554,1768151438737,-519.66992392,0.00015197,2]
[401352557,1768151438747,-500.0,0.00015197,2]
[401352559,1768151438757,-500.0,0.00015197,2]
[401352560,1768151438766,-500.0,0.00015197,2]
[401352563,1768151438776,-500.0,0.00015197,2]
[401352565,1768151438786,-1801.26,0.00015197,2]
[401352567,1768151438795,-500.0,0.00015197,2]
[401352569,1768151438804,-500.0,0.00015197,2]
[401352571,1768151438814,-500.0,0.00015197,2]
[401352573,1768151438823,-320.87822696,0.00015197,2]
[401352575,1768151438834,-500.0,0.00015197,2]
[401352577,1768151438843,-500.0,0.00015197,2]
[401352579,1768151438852,-500.0,0.00015197,2]
[401352581,1768151438861,-500.0,0.00015197,2]
[401352582,1768151438871,-589.83364398,0.00015197,2]
[401352584,1768151438881,-500.0,0.00015197,2]
[401352587,1768151438891,-500.0,0.00015197,2]
[401352588,1768151438901,-500.0,0.00015197,2]
[401352591,1768151438911,-500.0,0.00015197,2]
[401352593,1768151438920,-500.0,0.00015197,2]
[401352595,1768151438931,-500.0,0.00015197,2]
[401352596,1768151438946,-500.0,0.00015197,2]
[401352598,1768151438956,-500.0,0.00015197,2]
[401352601,1768151438968,-500.0,0.00015197,2]
[401352603,1768151438978,-500.0,0.00015197,2]
[401352605,1768151438988,-500.0,0.00015197,2]
[401352606,1768151438999,-507.90714486,0.00015197,2]
[401352608,1768151439009,-500.0,0.00015197,2]
[401352610,1768151439019,-500.0,0.00015197,2]
[401352612,1768151439029,-500.0,0.00015197,2]
[401352614,1768151439038,-500.0,0.00015197,2]
[401352616,1768151439051,-500.0,0.00015197,2]
[401352618,1768151439060,-500.0,0.00015197,2]
[401352620,1768151439070,-500.0,0.00015197,2]
[401352622,1768151439080,-500.0,0.00015197,2]
[401352624,1768151439090,-500.0,0.00015197,2]
[401352626,1768151439108,-500.0,0.00015197,2]
[401352628,1768151439117,-500.0,0.00015197,2]
[401352630,1768151439127,-500.0,0.00015197,2]
[401352632,1768151439136,-192.23943256,0.00015197,2]
[401352634,1768151439145,-500.0,0.00015197,2]
[401352636,1768151439154,-500.0,0.00015197,2]
[401352638,1768151439163,-500.0,0.00015197,2]
[401352640,1768151439178,-274.87260106,0.00015197,2]
[401352642,1768151439188,-500.0,0.00015197,2]
[401352644,1768151439201,-500.0,0.00015197,2]
[401352646,1768151439211,-500.0,0.00015197,2]
[401352648,1768151439221,-500.0,0.00015197,2]
[401352650,1768151439230,-500.0,0.00015197,2]
[401352652,1768151439240,-500.0,0.00015197,2]
[401352654,1768151439250,-500.0,0.00015197,2]
[401352656,1768151439259,-500.0,0.00015197,2]
[401352658,1768151439268,-500.0,0.00015197,2]